bitfinex-derivatives/quotes_ETHF0:USTF0_20250909
["timestamp","ask_amount","ask_price","bid_price","bid_amount"]
[1757426637512,3.2078,4315.5,4313.0,0.57279]
[1757426637713,3.2078,4315.5,4314.3,3.2078]
[1757426637908,3.2078,4315.5,4314.4,0.6937]
[1757426638113,3.2078,4316.0,4314.4,0.6937]
[1757426638312,3.2078,4316.0,4314.6,3.2078]
[1757426638313,3.9082,4316.0,4314.6,3.2078]
[1757426638711,3.2078,4315.5,4314.4,3.9015]
[1757426638913,3.5518,4315.5,4314.0,0.2714]
[1757426639121,3.2078,4314.1,4312.9,0.6937]
[1757426639515,0.4031,4314.0,4312.9,0.6937]
[1757426639715,0.4031,4314.0,4312.8,3.65541758]
[1757426639716,3.6109,4314.0,4312.8,3.65541758]
[1757426639917,3.6109,4314.0,4312.8,3.38401758]
[1757426640215,3.2078,4313.5,4311.5,3.2078]
[1757426640415,3.2078,4313.0,4310.3,0.69977589]
[1757426640715,3.2078,4310.5,4310.3,0.00607589]
[1757426640910,0.7004,4310.4,4310.3,0.00607589]
[1757426641108,3.2078,4310.5,4310.3,0.00607589]
[1757426641319,0.343,4310.4,4310.3,0.00607589]
[1757426641814,3.2078,4311.1,4310.3,0.00607589]
[1757426642014,0.343,4311.0,4310.3,0.00607589]
[1757426642217,3.2078,4311.7,4310.3,0.00607589]
[1757426642411,3.2078,4312.3,4311.0,3.9015]
[1757426642610,3.2078,4312.3,4311.7,0.6937]
[1757426642815,1.1035,4314.0,4312.3,0.6937]
[1757426643111,0.4031,4314.0,4313.8,3.2078]
[1757426643314,3.2078,4315.5,4313.9,0.6937]
[1757426643520,3.2078,4316.9,4315.4,3.2078]
[1757426643714,0.5104824,4316.8,4315.9,3.2078]
[1757426643914,3.2078,4317.6,4314.0,0.6184]
[1757426643915,0.1634824,4316.7,4316.6,0.6937]
[1757426644419,0.1634824,4316.7,4316.3,3.2078]
[1757426644623,0.7004,4317.6,4316.4,0.6937]
[1757426644624,0.1634824,4316.6,4316.4,0.6937]
[1757426644917,0.1634824,4316.5,4316.3,3.2078]
[1757426645119,0.1634824,4316.4,4315.5,0.6937]
[1757426645318,1.21042171,4318.3,4315.2,3.2078]
[1757426645319,3.2078,4315.9,4315.2,3.2078]
[1757426645519,0.1634824,4315.8,4315.2,3.2078]
[1757426645717,33.38,4317.2,4315.2,3.2078]
[1757426645718,0.8638824,4315.7,4315.2,3.2078]
[1757426645923,0.1634824,4315.6,4315.2,3.2078]
[1757426646114,0.1634824,4315.5,4315.2,3.2078]
[1757426646318,0.1634824,4315.4,4315.3,0.6937]
[1757426646522,0.1634824,4315.4,4315.2,3.2078]
[1757426646710,0.1634824,4315.3,4314.6,3.2078]
[1757426647021,1.21042171,4317.2,4315.0,0.6937]
[1757426647213,1.21042171,4317.6,4316.9,0.6937]
[1757426647417,1.61389562,4318.6,4317.5,3.2078]
[1757426647723,1.61389562,4319.1,4318.5,3.2078]
[1757426647920,2.7169,4318.9,4318.5,3.03400718]
[1757426648114,0.2668,4318.6,4318.5,3.03400718]
[1757426648314,0.9672,4318.6,4318.5,3.03400718]
[1757426648517,4.9672,4318.6,4317.3,3.2078]
[1757426648715,1.0544,4318.5,4317.3,3.2078]
[1757426648916,0.2668,4318.6,4318.4,3.2078]
[1757426649120,0.7004,4318.5,4317.0,3.2078]
[1757426649418,0.7004,4318.2,4317.0,3.2078]
[1757426649621,0.7004,4318.2,4315.0,0.23166]
[1757426649622,0.7004,4318.4,4317.5,3.2078]
[1757426649817,0.7004,4318.4,4316.1,5.6]
[1757426649818,2.0165,4318.9,4318.0,3.2078]
[1757426650029,5.9247,4318.9,4317.9,3.2078]
[1757426650322,3.5618,4318.8,4316.8,0.6937]
[1757426650524,3.2078,4318.4,4317.3,2.057]
[1757426650720,3.5618,4318.4,4317.5,3.2078]
[1757426650916,3.9082,4317.8,4317.3,1.7856]
[1757426651120,3.2078,4318.3,4317.3,4.9934]
[1757426651325,0.354,4318.2,4317.3,1.7856]
[1757426651621,3.2078,4317.4,4317.3,1.7856]
[1757426651918,3.2078,4318.4,4317.3,2.4793]
[1757426652117,3.5608,4318.4,4317.4,3.2078]
[1757426652622,3.9082,4317.7,4317.3,1.7856]
[1757426652826,3.2078,4317.7,4317.4,0.6937]
[1757426653021,3.2078,4317.7,4317.3,1.7856]
[1757426653219,3.2078,4317.7,4317.3,1.0547]
[1757426653719,3.2078,4317.7,4316.8,2.6184]
[1757426653927,3.2078,4317.1,4316.8,2.6184]
[1757426654521,3.2078,4317.1,4316.8,6.6184]
[1757426654820,3.2078,4317.1,4316.8,2.6184]
[1757426654821,0.353,4317.0,4316.8,2.6184]
[1757426655419,3.2078,4317.1,4316.8,2.6184]
[1757426655826,0.34995225,4319.2,4317.6,0.2714]
[1757426656025,3.9082,4321.3,4319.0,3.2078]
[1757426656328,0.7004,4320.6,4319.8,3.2078]
[1757426656524,1.0534,4320.6,4319.8,3.2078]
[1757426656824,1.206,4319.9,4319.1,3.2078]
[1757426657025,0.774,4319.9,4319.1,3.2078]
[1757426657328,0.7373,4319.1,4318.2,3.2078]
[1757426657718,0.352,4319.1,4318.7,3.2078]
[1757426657920,0.352,4319.1,4318.1,3.2078]
[1757426658118,3.5131,4318.6,4318.1,3.2078]
[1757426658324,0.6573,4318.6,4318.1,3.2078]
[1757426658521,3.2078,4318.3,4317.6,3.2078]
[1757426658823,0.351,4318.4,4317.2,3.3143]
[1757426659021,0.853,4318.3,4317.1,4.5054]
[1757426659221,0.853,4318.3,4317.1,1.2976]
[1757426659222,3.2078,4317.9,4317.1,1.2976]
[1757426659421,0.7373,4317.7,4317.1,1.2976]
[1757426659618,1.5454,4317.8,4317.2,2.548]
[1757426659816,1.5454,4317.8,4317.2,3.2777]
[1757426660022,1.5454,4317.8,4317.3,3.9375]
[1757426660221,1.5454,4317.8,4317.3,3.2078]
[1757426660518,0.6164,4317.8,4317.3,3.2078]
[1757426660934,3.5578,4317.7,4317.2,2.548]
[1757426661126,0.3053,4317.3,4317.2,2.548]
[1757426661326,0.3053,4317.3,4317.2,5.7558]
[1757426661530,0.6164,4317.8,4317.2,9.7558]
[1757426661830,1.3537,4317.8,4317.7,3.2078]
[1757426662031,1.85430084,4317.8,4317.6,3.2078]
[1757426662333,0.50105561,4317.7,4316.6,3.2078]
[1757426662529,0.50105561,4317.6,4316.6,3.2078]
[1757426662730,0.50105561,4317.5,4316.6,3.2078]
[1757426662932,3.2078,4317.9,4316.6,3.2078]
[1757426663128,0.85014007,4317.8,4316.7,0.349]
[1757426663327,0.50114007,4317.7,4316.7,0.349]
[1757426663527,0.349,4318.9,4317.2,3.2078]
[1757426663728,0.349,4318.9,4317.8,3.2078]
[1757426663927,36.5798,4319.0,4317.8,3.2078]
[1757426664132,3.2078,4319.0,4317.9,4.41682]
[1757426664332,3.2078,4319.0,4317.8,3.2078]
[1757426664536,3.5558,4319.0,4317.9,0.17894301]
[1757426664831,1.0114,4318.4,4318.0,5.77894301]
[1757426665137,0.7373,4318.2,4317.8,1.3664]
[1757426665533,3.9451,4317.9,4317.8,1.3664]
[1757426666334,8.2921,4317.9,4317.8,1.3664]
[1757426666531,8.2921,4317.9,4316.5,3.2078]
[1757426666732,3.2078,4317.3,4316.6,0.19737355]
[1757426667037,3.9451,4317.3,4316.0,3.2078]
[1757426667240,3.2078,4317.3,4316.6,0.7297]
[1757426667435,3.2078,4317.3,4316.7,0.19739113]
[1757426667630,0.1157,4318.3,4316.9,0.7297]
[1757426667631,3.2078,4317.8,4316.9,0.7297]
[1757426667931,0.346,4317.7,4317.0,0.19739113]
[1757426668131,0.346,4317.7,4316.9,0.7297]
[1757426668132,0.346,4317.7,4317.1,0.19739113]
[1757426668324,0.346,4317.7,4317.2,0.19739113]
[1757426668523,0.346,4317.7,4254.8,18.503419]
[1757426668524,0.345,4317.6,4316.1,0.7297]
[1757426668728,0.345,4317.6,4316.2,0.19739043]
[1757426668729,3.2078,4317.3,4316.2,0.19739043]
[1757426668927,0.7373,4317.2,4316.0,6.1502]
[1757426669128,3.2078,4317.3,4316.0,6.1502]
[1757426669129,3.2078,4317.3,4316.1,0.7297]
[1757426669326,3.9451,4317.3,4316.2,0.19737924]
[1757426669637,3.9451,4317.3,4316.0,6.1502]
[1757426669929,0.345,4317.2,4316.0,6.1502]
[1757426670329,3.2078,4316.8,4316.0,6.1502]
[1757426670531,0.344,4316.7,4316.0,6.1502]
[1757426670837,3.2078,4316.1,4316.0,2.9424]
[1757426671131,4.2891,4316.1,4316.0,2.9424]
[1757426671332,3.2078,4316.1,4316.0,2.9424]
[1757426671631,3.5518,4316.1,4316.0,2.9424]
[1757426671832,0.343,4316.1,4316.0,2.9424]
[1757426672232,3.2078,4316.6,4316.0,3.6721]
[1757426672428,0.343,4316.7,4316.0,3.6721]
[1757426672625,0.343,4316.7,4316.1,0.1976581]
[1757426672831,3.2078,4317.1,4316.3,3.2078]
[1757426673035,3.2078,4317.1,4316.0,3.6721]
[1757426673238,0.342,4317.0,4316.5,3.2078]
[1757426673539,0.342,4317.0,4316.6,0.19784705]
[1757426673733,3.2078,4317.6,4316.5,4.35447]
[1757426673939,0.83860475,4317.5,4316.6,0.1978457]
[1757426674135,0.49660475,4317.4,4316.8,0.7297]
[1757426674333,0.49660475,4317.3,4317.0,3.2078]
[1757426674538,1.0114,4318.4,4317.1,0.54001631]
[1757426674837,1.0114,4318.4,4318.1,0.7297]
[1757426675032,0.853,4318.3,4318.2,0.19801631]
[1757426675233,0.853,4318.3,4317.5,3.2078]
[1757426675234,1.69092972,4318.3,4316.8,3.2078]
[1757426675437,0.7373,4318.0,4316.9,0.17977272]
[1757426675634,0.83792972,4317.9,4317.0,0.17977272]
[1757426675833,0.49692972,4317.8,4317.1,0.17977272]
[1757426676032,0.49692972,4317.8,4316.8,3.2078]
[1757426676236,3.2078,4317.6,4316.9,0.18021546]
[1757426676436,0.49692972,4317.5,4317.1,0.7297]
[1757426676641,0.34,4317.9,4317.2,0.18021546]
[1757426676839,0.49756219,4317.8,4317.3,3.38801546]
[1757426677133,0.1157,4318.3,4315.1,1.62897706]
[1757426677134,0.7373,4317.6,4317.4,0.18021546]
[1757426677334,0.34,4317.9,4317.5,0.18021546]
[1757426677534,0.49811283,4317.8,4317.7,0.7297]
[1757426677734,0.49811283,4317.8,4317.7,0.18021546]
[1757426678133,0.49811283,4317.8,4317.7,0.90991546]
[1757426678539,1.0114,4318.4,4317.9,0.7297]
[1757426678739,1.0114,4318.4,4318.3,0.7297]
[1757426679037,1.23559005,4318.4,4318.3,0.18021546]
[1757426679243,2.07980334,4318.4,4317.3,3.2078]
[1757426679448,2.06409339,4318.3,4317.3,3.2078]
[1757426679632,0.83729005,4318.2,4317.3,3.2078]
[1757426679944,0.49829005,4318.1,4317.2,3.62469]
[1757426680140,0.1157,4318.4,4317.8,3.2078]
[1757426680334,0.1157,4318.4,4318.1,3.9375]
[1757426680535,0.1157,4318.4,4318.3,0.7297]
[1757426680732,0.339,4319.6,4318.3,0.7297]
[1757426680932,3.9451,4319.7,4318.7,3.2078]
[1757426681133,1.63450237,4320.4,4319.4,3.9375]
[1757426681134,3.2078,4320.4,4319.4,3.9375]
[1757426681332,3.9451,4321.1,4320.1,3.2078]
[1757426681538,0.338,4321.0,4320.1,3.2078]
[1757426681738,0.3053,4320.9,4320.1,3.2078]
[1757426681934,1.0426,4320.9,4320.1,3.2078]
[1757426682134,1.0426,4320.9,4319.8,3.2078]
[1757426682345,1.0426,4320.9,4318.8,3.2078]
[1757426682346,0.7373,4319.9,4318.8,3.2078]
[1757426682542,3.2078,4319.4,4318.8,3.2078]
[1757426682748,0.338,4319.3,4318.3,0.338]
[1757426683141,3.2078,4318.9,4318.1,3.2078]
[1757426683345,0.337,4318.8,4318.1,3.2078]
[1757426683540,0.337,4318.8,4317.8,1.0667]
[1757426683846,1.36,4319.8,4318.8,1.14644]
[1757426684040,0.337,4319.7,4319.4,3.2078]
[1757426684240,1.023,4319.8,4319.5,0.7297]
[1757426684847,0.7373,4319.7,4319.1,0.337]
[1757426685147,1.0743,4319.7,4318.5,0.7297]
[1757426685446,1.0743,4319.7,4318.3,5.6]
[1757426685447,1.0743,4319.7,4318.7,3.2078]
[1757426685644,3.2078,4319.4,4317.5,3.2078]
[1757426685838,3.9451,4318.8,4317.5,3.2078]
[1757426686042,0.336,4318.7,4317.6,0.7297]
[1757426686244,1.22680334,4319.5,4317.6,0.7297]
[1757426686245,3.2078,4319.5,4318.2,0.7297]
[1757426686435,3.5438,4319.5,4318.7,3.2078]
[1757426686741,0.1157,4321.0,4319.7,0.2109]
[1757426686939,0.9351,4321.0,4320.9,3.2078]
[1757426687138,0.8194,4321.0,4320.9,3.2078]
[1757426687443,0.8194,4320.8,4319.1,3.2078]
[1757426687646,1.149,4320.0,4319.1,3.2078]
[1757426688347,0.1157,4319.9,4319.1,3.2078]
[1757426688841,0.8194,4319.8,4319.1,3.2078]
[1757426689446,0.0791,4319.9,4319.7,3.62446]
[1757426689647,0.8194,4322.0,4320.9,0.41653]
[1757426689848,1.1247,4322.7,4321.5,3.2078]
[1757426690235,3.2078,4322.2,4321.5,3.2078]
[1757426690841,3.2078,4321.6,4320.5,3.2078]
[1757426691042,0.8194,4321.5,4320.5,3.2078]
[1757426691937,0.8194,4321.5,4320.5,4.783]
[1757426692736,1.1534,4321.5,4320.5,4.783]
[1757426692944,0.8194,4321.5,4320.5,5.19958]
[1757426693136,0.8194,4321.5,4320.6,0.17418183]
[1757426693348,0.8194,4321.5,4320.5,4.783]
[1757426693751,3.2078,4321.6,4320.5,5.19958]
[1757426694144,3.2078,4321.6,4320.7,0.41656]
[1757426694347,0.8194,4321.5,4320.5,4.783]
[1757426694647,3.2078,4321.6,4320.5,4.783]
[1757426695047,0.3296,4320.9,4320.5,1.5752]
[1757426695250,4.0272,4320.6,4320.5,1.5752]
[1757426695555,0.6616,4320.9,4320.5,1.5752]
[1757426695556,3.2078,4321.6,4320.5,4.783]
[1757426695853,0.8194,4321.5,4320.5,1.5752]
[1757426696447,0.8194,4321.5,4320.5,1.99178]
[1757426696742,3.2078,4321.6,4320.9,3.62434]
[1757426696948,0.333,4321.8,4321.3,0.4165]
[1757426697145,0.333,4321.8,4321.4,3.2078]
[1757426697341,3.2078,4322.1,4321.4,3.2078]
[1757426698352,3.2078,4322.1,4321.6,0.41647]
[1757426698744,0.3053,4322.7,4321.9,0.41645]
[1757426698745,3.5131,4322.7,4321.9,0.41645]
[1757426699053,0.8194,4322.6,4321.3,3.2078]
[1757426699252,0.8194,4322.6,4321.4,0.332]
[1757426700156,1.1504,4322.6,4321.8,3.2078]
[1757426700349,3.2078,4323.7,4322.5,3.2078]
[1757426700657,3.2078,4323.7,4323.3,0.41631]
[1757426700956,0.8194,4324.2,4323.4,0.331]
[1757426701151,3.2078,4324.3,4323.1,5.6]
[1757426701353,3.2078,4324.3,4322.8,3.2078]
[1757426701354,0.3296,4323.6,4322.8,3.2078]
[1757426701656,0.8194,4323.0,4322.1,3.2078]
[1757426701854,0.6606,4323.6,4322.1,3.2078]
[1757426702050,0.8194,4323.1,4322.1,3.2078]
[1757426702253,0.6606,4323.6,4321.1,5.6]
[1757426702254,0.8194,4322.4,4321.1,5.6]
[1757426702455,0.3296,4322.7,4320.8,3.2078]
[1757426702456,0.3296,4321.8,4320.8,3.2078]
[1757426702657,0.8194,4321.9,4321.3,3.2078]
[1757426702855,0.8194,4321.7,4321.3,3.2078]
[1757426703050,4.0272,4321.4,4320.6,6.91317]
[1757426703252,0.8194,4322.1,4321.2,0.41651]
[1757426703452,0.8194,4322.1,4321.3,0.4165]
[1757426703655,0.8194,4322.1,4321.1,3.2078]
[1757426703955,0.8194,4322.1,4321.4,2.7328]
[1757426704549,0.8194,4321.6,4321.4,2.7328]
[1757426704754,3.2078,4321.7,4321.4,2.7328]
[1757426704955,1.1494,4321.5,4321.4,1.8852]
[1757426705559,0.8194,4324.5,4323.0,1.21244]
[1757426705756,3.2078,4325.3,4324.0,3.2078]
[1757426705955,0.3296,4325.4,4324.0,3.2078]
[1757426705956,0.8194,4325.1,4324.0,3.2078]
[1757426706158,0.6606,4325.4,4324.6,3.2078]
[1757426706356,0.49105328,4325.3,4324.6,3.2078]
[1757426706661,0.49105328,4325.3,4321.8,1.32364]
[1757426706662,0.61033231,4325.2,4324.0,3.2078]
[1757426706851,3.2078,4325.0,4324.0,3.2078]
[1757426707058,0.8194,4324.8,4324.0,3.2078]
[1757426707765,0.33,4324.9,4324.0,3.2078]
[1757426708259,0.8194,4324.8,4324.0,3.2078]
[1757426708766,3.2078,4325.0,4324.0,3.2078]
[1757426708964,3.2078,4325.0,4324.2,0.7961]
[1757426709261,0.329,4325.3,4324.5,3.2078]
[1757426709463,0.329,4325.3,4324.6,3.2078]
[1757426710361,0.8194,4324.9,4324.1,3.2078]
[1757426710865,3.5358,4325.1,4324.1,3.2078]
[1757426711059,0.328,4325.1,4324.1,3.2078]
[1757426711366,0.8194,4325.0,4324.1,3.2078]
[1757426711569,0.3296,4325.4,4324.6,3.2078]
[1757426711859,0.3296,4325.4,4324.1,3.2078]
[1757426711860,0.8194,4325.1,4324.1,3.2078]
[1757426712058,0.327,4325.0,4324.1,3.2078]
[1757426712457,0.8194,4325.1,4324.1,3.2078]
[1757426712656,3.2078,4325.2,4324.1,3.2078]
[1757426712860,3.2078,4325.2,4324.2,0.7961]
[1757426713066,0.326,4325.7,4324.6,3.2078]
[1757426713458,3.2078,4325.3,4324.3,3.2078]
[1757426713664,0.8194,4325.2,4324.3,3.2078]
[1757426713864,3.2078,4325.3,4324.3,3.2078]
[1757426714359,0.326,4325.2,4324.8,4.0039]
[1757426714561,0.326,4325.2,4324.8,3.2078]
[1757426714862,0.325,4325.7,4324.8,4.42006]
[1757426715165,0.8194,4326.2,4325.4,3.2078]
[1757426715559,0.8194,4326.2,4324.9,3.2078]
[1757426715761,0.325,4326.3,4324.9,3.2078]
[1757426715762,0.8194,4326.0,4324.9,3.2078]
[1757426716064,0.8194,4326.0,4325.5,3.2078]
[1757426716568,0.8253,4326.5,4325.5,3.2078]
[1757426717067,0.8253,4326.5,4326.0,3.2078]
[1757426717270,0.324,4326.6,4326.0,3.2078]
[1757426718666,0.324,4326.6,4326.5,3.2078]
[1757426718865,3.2078,4327.2,4326.5,3.9903]
[1757426720065,3.2078,4328.0,4327.1,0.7825]
[1757426720760,3.2078,4328.0,4326.9,0.322]
[1757426720761,4.0331,4328.6,4327.6,3.2078]
[1757426721072,4.0331,4328.6,4327.6,3.5298]
[1757426721366,3.2078,4328.0,4326.9,3.2078]
[1757426721665,0.8253,4327.9,4326.9,3.2078]
[1757426721867,0.8253,4327.9,4327.6,3.0064]
[1757426722068,3.2078,4329.2,4328.0,0.7825]
[1757426722367,1.1504,4329.6,4328.6,0.7825]
[1757426722869,0.9953,4328.9,4328.5,3.2078]
[1757426723068,0.17,4328.9,4328.8,0.7825]
[1757426723263,3.2078,4330.2,4329.2,0.6974]
[1757426723569,3.2078,4330.2,4329.4,3.2078]
[1757426723759,0.321,4330.5,4330.1,3.2078]
[1757426723964,0.321,4330.5,4329.6,3.2078]
[1757426724165,1.1504,4330.4,4329.6,3.2078]
[1757426724772,0.8253,4330.3,4329.6,3.2078]
[1757426724974,0.8253,4330.3,4329.4,3.2078]
[1757426725875,0.321,4330.5,4329.9,3.2078]
[1757426726069,0.8253,4330.4,4329.9,3.2078]
[1757426726266,0.8253,4329.5,4329.4,3.2078]
[1757426726578,0.32,4329.8,4329.4,3.2078]
[1757426727079,0.8253,4329.5,4329.4,3.2078]
[1757426727276,0.32,4329.8,4328.9,3.2078]
[1757426727277,0.8253,4329.7,4328.9,3.2078]
[1757426727465,0.8253,4329.7,4327.2,0.3024]
[1757426727466,3.2078,4329.5,4328.3,3.2078]
[1757426727665,3.2078,4329.0,4328.8,1.2248]
[1757426727873,0.3251,4330.4,4329.0,0.41576]
[1757426727874,1.1504,4330.4,4329.0,0.41576]
[1757426728176,0.319,4330.7,4329.5,0.6974]
[1757426728364,3.5268,4330.7,4329.5,1.0164]
[1757426728569,0.8253,4330.6,4329.8,3.2078]
[1757426729571,1.1443,4330.6,4329.8,3.2078]
[1757426730469,3.2078,4329.9,4328.9,3.2078]
[1757426730671,0.8253,4329.7,4328.9,3.2078]
[1757426731178,0.8253,4329.7,4329.1,2.6112]
[1757426731371,0.3251,4330.2,4329.1,2.6112]
[1757426731577,0.3251,4331.6,4330.0,1.11306]
[1757426731578,3.2078,4330.9,4330.0,1.11306]
[1757426731869,0.8253,4331.4,4330.7,3.2078]
[1757426732071,0.318,4331.7,4330.7,3.2078]
[1757426732267,0.8253,4331.6,4330.2,3.2078]
[1757426732474,0.8253,4331.1,4330.2,3.2078]
[1757426732669,0.8253,4331.0,4330.2,3.2078]
[1757426733184,0.318,4331.1,4330.2,3.2078]
[1757426733374,1.1504,4331.6,4330.7,3.2078]
[1757426733680,0.8253,4331.6,4330.7,3.2078]
[1757426734572,0.317,4331.8,4330.7,3.62339]
[1757426734775,0.8253,4332.2,4330.7,3.2078]
[1757426734972,0.316,4331.9,4330.8,0.6837]
[1757426735178,0.316,4331.8,4330.8,0.6837]
[1757426736477,0.316,4331.8,4330.8,1.09928]
[1757426736678,0.8253,4332.2,4330.8,0.6837]
[1757426736975,0.3251,4331.6,4330.8,3.2078]
[1757426737174,3.2078,4331.2,4330.3,2.9576]
[1757426737474,3.2078,4330.5,4330.3,2.9576]
[1757426737670,33.597,4330.4,4327.9,0.6837]
[1757426737974,33.597,4330.4,4327.4,3.5221]
[1757426737975,3.2078,4328.8,4327.5,0.7825]
[1757426738169,33.82793,4330.4,4328.2,3.62363]
[1757426738170,3.2078,4329.3,4328.2,3.62363]
[1757426738374,33.282,4330.4,4328.9,0.7825]
[1757426738375,0.315,4329.8,4328.9,0.7825]
[1757426738673,0.315,4329.8,4329.3,3.2078]
[1757426738878,3.2078,4329.9,4329.3,3.2078]
[1757426739085,33.282,4330.4,4329.4,0.7825]
[1757426739273,33.282,4330.4,4329.8,3.2078]
[1757426739469,0.315,4330.3,4330.0,0.7825]
[1757426739675,3.2078,4330.2,4329.3,0.7825]
[1757426740480,0.315,4330.3,4329.3,0.7825]
[1757426740878,3.2078,4330.0,4329.1,3.2078]
[1757426741176,3.2078,4329.5,4328.8,0.7825]
[1757426741379,0.48914865,4329.4,4328.8,0.7825]
[1757426741579,3.2078,4329.5,4328.9,0.7825]
[1757426741773,3.2078,4329.5,4328.5,3.2078]
[1757426741774,0.80335426,4329.4,4328.6,0.7825]
[1757426741971,0.314,4329.3,4329.0,3.2078]
[1757426742176,33.282,4330.4,4329.1,0.7825]
[1757426742379,0.80385789,4330.3,4329.1,0.7825]
[1757426742576,0.80385789,4330.3,4329.6,3.5221]
[1757426742577,0.314,4330.3,4329.6,3.5221]
[1757426742882,3.2078,4331.1,4330.2,0.7825]
[1757426743175,0.8028911,4331.0,4329.6,3.5221]
[1757426743378,0.4898911,4330.9,4329.7,0.7825]
[1757426743580,0.4898911,4330.8,4329.7,0.7825]
[1757426743775,3.2078,4330.6,4329.7,0.7825]
[1757426743972,0.4898911,4330.5,4329.7,0.7825]
[1757426744580,0.313,4330.4,4329.7,0.7825]
[1757426744778,0.4898911,4330.3,4329.7,0.7825]
[1757426745375,0.4898911,4330.3,4329.6,3.2078]
[1757426745579,3.2078,4329.7,4328.2,0.7825]
[1757426745785,3.2078,4328.4,4327.5,0.7825]
[1757426746079,3.2078,4328.4,4326.4,0.3143]
[1757426746080,4.17630696,4328.4,4326.8,0.7825]
[1757426746282,3.2078,4327.0,4326.4,0.3143]
[1757426746485,0.80331588,4326.9,4326.5,0.8498]
[1757426746682,1.23207204,4327.5,4326.7,0.8498]
[1757426746683,3.2078,4327.5,4326.7,0.8498]
[1757426746984,0.312,4328.3,4327.5,0.8498]
[1757426747279,1.23207204,4329.3,4328.3,0.8498]
[1757426747486,3.2078,4329.8,4329.1,0.8498]
[1757426747789,0.13449526,4329.7,4329.0,3.2078]
[1757426747986,0.13449526,4329.6,4329.0,3.2078]
[1757426748285,0.97919526,4329.5,4329.0,3.2078]
[1757426748482,3.2078,4329.1,4328.2,0.8498]
[1757426748674,0.13449526,4329.0,4328.2,0.8498]
[1757426748874,0.312,4328.9,4328.2,0.8498]
[1757426749180,3.2078,4328.4,4327.4,0.8498]
[1757426749380,1.54407204,4328.9,4327.4,0.8498]
[1757426749381,0.13469527,4328.3,4327.4,0.8498]
[1757426749580,0.312,4328.7,4328.1,0.8498]
[1757426749880,0.13470892,4328.6,4328.0,1.1732]
[1757426750078,0.312,4328.7,4328.0,1.1732]
[1757426750275,0.13476147,4328.6,4328.0,0.8498]
[1757426750482,3.2078,4328.1,4327.5,0.311]
[1757426750779,3.2078,4328.1,4328.0,1.1732]
[1757426750981,0.5327,4329.5,4328.1,0.8498]
[1757426750982,0.311,4328.5,4328.1,0.8498]
[1757426751183,0.13474164,4328.4,4328.0,0.3234]
[1757426751390,3.34254164,4328.3,4328.1,0.8498]
[1757426751578,0.13474164,4328.2,4328.1,0.8498]
[1757426752085,0.311,4328.5,4328.0,0.3234]
[1757426752284,0.13476722,4328.4,4328.0,0.3234]
[1757426752484,0.311,4328.5,4328.1,0.8498]
[1757426753287,0.311,4328.5,4328.0,0.3234]
[1757426753288,1.23207204,4329.3,4328.2,3.2078]
[1757426753481,3.2078,4329.6,4329.0,0.8498]
[1757426753482,4.43987204,4329.6,4329.0,0.8498]
[1757426753682,3.2078,4329.6,4329.0,0.8498]
[1757426755385,3.2078,4329.6,4328.4,4.0576]
[1757426755386,1.1099,4329.5,4328.4,4.0576]
[1757426755591,3.2078,4329.1,4328.4,0.8498]
[1757426755788,2.34197204,4329.5,4327.9,4.0576]
[1757426755789,3.2078,4328.7,4327.9,4.0576]
[1757426756089,4.0077,4328.5,4327.9,3.2078]
[1757426756290,0.309,4328.4,4327.9,3.2078]
[1757426756487,0.7999,4328.3,4327.9,3.2078]
[1757426756883,0.309,4328.4,4327.9,3.2078]
[1757426757086,3.2078,4328.5,4328.0,0.8498]
[1757426757391,0.309,4328.7,4328.0,0.8498]
[1757426758190,0.309,4328.7,4328.1,0.3234]
[1757426758585,3.2078,4329.0,4328.2,0.8498]
[1757426758887,3.2078,4329.5,4328.9,0.8498]
[1757426759090,0.49034842,4329.4,4328.8,0.3234]
[1757426759384,0.308,4330.0,4329.3,0.8498]
[1757426759583,0.49040269,4329.9,4329.3,0.8498]
[1757426759789,0.49040269,4329.8,4329.3,0.8498]
[1757426759994,0.49040269,4329.7,4329.5,0.8498]
[1757426760287,0.308,4330.0,4328.9,3.5158]
[1757426760489,0.49046914,4329.9,4329.7,0.4157]
[1757426760695,1.63450237,4331.2,4330.0,0.41567]
[1757426760696,1.23207204,4331.2,4330.0,0.41567]
[1757426760885,3.2078,4332.0,4331.0,4.0576]
[1757426761189,0.49065017,4331.9,4331.4,3.2078]
[1757426761391,3.5148,4332.4,4331.4,3.2078]
[1757426761691,0.49848073,4332.3,4331.5,0.8498]
[1757426761891,0.49848073,4332.2,4331.6,0.3234]
[1757426762091,0.49848073,4332.1,4331.7,0.8498]
[1757426762392,1.23207204,4331.8,4330.9,0.8498]
[1757426762591,3.2078,4331.4,4330.6,0.8498]
[1757426762885,3.2078,4331.4,4330.1,0.8498]
[1757426762886,1.29838073,4331.3,4330.1,0.8498]
[1757426763092,0.49848073,4331.2,4330.6,3.2078]
[1757426763591,3.2078,4331.0,4330.1,3.2078]
[1757426763789,1.23207204,4330.8,4330.1,3.2078]
[1757426763985,0.49848073,4330.9,4330.1,3.2078]
[1757426763986,0.49848073,4330.7,4330.1,3.2078]
[1757426764191,0.49848073,4330.6,4330.2,0.3234]
[1757426764387,0.49848073,4330.5,4330.3,0.8498]
[1757426764583,0.49848073,4330.4,4330.3,0.8498]
[1757426764789,3.2078,4330.4,4329.7,0.8498]